fUST/lending_fUST_20250307
["ID","MTS","AMOUNT","RATE_DAILY","PERIOD"]
[355584043,1741327838188,-500.0,0.000189,2]
[355584044,1741327838198,-500.0,0.000189,2]
[355584045,1741327838208,-747.02065568,0.000189,2]
[355584046,1741327838218,-300.0,0.00019636,2]
[355584047,1741327838227,-237.76480661,0.00019637,2]
[355584081,1741327846247,-23962.80457601,0.00019637,2]
[355584088,1741327846308,-699.43061738,0.00019637,2]
[355584091,1741327846317,-358.73271975,0.00019704,2]
[355584095,1741327986111,-319.593624,0.00018779,2]
[355584096,1741327986138,-498.01377045,0.000189,2]
[355584097,1741327986163,-300.0,0.00019615,2]
[355584098,1741327986189,-510.33878125,0.00019616,2]
[355584099,1741327986213,-500.0,0.00019616,2]
[355584100,1741327986237,-500.0,0.00019616,2]
[355584101,1741327986260,-840.78,0.00019616,2]
[355584102,1741327986284,-500.0,0.00019636,2]
[355584103,1741327986306,-500.0,0.00019636,2]
[355584104,1741327986328,-500.0,0.00019636,2]
[355584105,1741327986350,-1964.0,0.00019636,2]
[355584106,1741327986373,-500.0,0.00019636,2]
[355584107,1741327986395,-500.0,0.00019636,2]
[355584108,1741327986416,-1719.33,0.00019636,2]
[355584109,1741327986440,-500.0,0.00019636,2]
[355584110,1741327986462,-500.0,0.00019636,2]
[355584111,1741327986484,-1254.1,0.00019636,2]
[355584112,1741327986506,-500.0,0.00019636,2]
[355584113,1741327986529,-1937.2,0.00019636,2]
[355584114,1741327986551,-500.0,0.00019636,2]
[355584115,1741327986574,-1301.69,0.00019636,2]
[355584116,1741327986597,-1824.31,0.00019636,2]
[355584117,1741327986620,-1615.39,0.00019636,2]
[355584118,1741327986643,-500.0,0.00019636,2]
[355584119,1741327986665,-500.0,0.00019636,2]
[355584120,1741327986686,-743.67,0.00019636,2]
[355584121,1741327986708,-1221.06,0.00019636,2]
[355584122,1741327986730,-1883.18,0.00019636,2]
[355584123,1741327986753,-3767.78,0.00019636,2]
[355584124,1741327986775,-500.0,0.00019636,2]
[355584125,1741327986797,-1159.4,0.00019636,2]
[355584126,1741327986821,-518.0,0.00019636,2]
[355584127,1741327986844,-500.0,0.00019636,2]
[355584128,1741327986866,-3571.4,0.00019636,2]
[355584129,1741327986891,-5550.7638243,0.00019636,2]
[355584130,1741328059044,-500.0,0.00019616,2]
[355584131,1741328059066,-213.08275864,0.00019616,2]
[355584132,1741328059088,-787.27,0.00019616,2]
[355584133,1741328059111,-661.8561757,0.00019636,2]
[355584134,1741328059133,-500.0,0.00019636,2]
[355584135,1741328059157,-826.67,0.00019636,2]
[355584136,1741328059178,-1641.53,0.00019636,2]
[355584137,1741328059202,-1019.42,0.00019636,2]
[355584138,1741328059225,-500.0,0.00019636,2]
[355584139,1741328059249,-575.23,0.00019636,2]
[355584140,1741328059271,-916.25,0.00019636,2]
[355584141,1741328059293,-950.87,0.00019636,2]
[355584142,1741328059315,-663.64,0.00019636,2]
[355584143,1741328059337,-1998.06,0.00019636,2]
[355584144,1741328059360,-627.27,0.00019636,2]
[355584145,1741328059381,-1646.06,0.00019636,2]
[355584146,1741328059403,-1378.75,0.00019636,7]
[355584147,1741328059426,-1702.51,0.00019636,2]
[355584148,1741328059449,-2891.53106566,0.00019636,2]
[355584184,1741329032580,-250.0,0.00018523,2]
[355584185,1741329032589,-300.0,0.00018611,2]
[355584186,1741329032599,-24900.0,0.00018612,2]
[355584187,1741329032608,-500.0,0.00018613,2]
[355584188,1741329032618,-1607.3010356,0.00018853,2]
[355584189,1741329032627,-83.1178308,0.000189,2]
[355584250,1741329038314,-1744.33115263,0.00018423,2]
[355584251,1741329038324,-377.12057138,0.000189,2]
[355584252,1741329038335,-2648.33551687,0.00019078,2]
[355584253,1741329038344,-5953.76,0.00019178,2]
[355584254,1741329038354,-1321.3,0.00019178,7]
[355584256,1741329038363,-1053.41,0.00019178,2]
[355584258,1741329038372,-1080.53,0.00019178,2]
[355584260,1741329038382,-864.49,0.00019178,2]
[355584262,1741329038391,-580.36,0.00019178,2]
[355584263,1741329038401,-1438.39044086,0.00019452,2]
[355584368,1741329046934,-500.0,0.00019178,2]
[355584370,1741329046944,-500.0,0.00019178,2]
[355584372,1741329046955,-4515.36955914,0.00019452,2]
[355584374,1741329046964,-445.01268634,0.00019452,7]
[355584534,1741329805870,-10000.0,0.00017941,2]
[355584535,1741329901467,-300.0,0.0001794,2]
[355584536,1741329901489,-14900.0,0.00017941,2]
[355584537,1741329901511,-1216.5981331,0.00018083,2]
[355584538,1741329901532,-334.106891,0.00018315,2]
[355584539,1741329901552,-1053.7464769,0.00018459,2]
[355584540,1741329901574,-183.742672,0.00018559,2]
[355584541,1741329901594,-5346.65534076,0.00018711,2]
[355584542,1741329901615,-248.72469907,0.000188,2]
[355584543,1741329901636,-761.1885049,0.000189,2]
[355584544,1741329901657,-1416.22085886,0.000189,2]
[355584545,1741329901679,-239.01642341,0.00019073,2]
[355584546,1741329955301,-198.1263854,0.00017983,2]
[355584547,1741329955325,-2129.48257778,0.00019073,2]
[355584548,1741329955349,-458.19073588,0.00019078,2]
[355584549,1741329955370,-180.67,0.00019078,2]
[355584550,1741329955392,-181.61,0.00019168,3]
[355584551,1741329955414,-544.84,0.00019168,3]
[355584552,1741329955436,-500.24276344,0.00019173,2]
[355584553,1741329955457,-500.0,0.00019173,2]
[355584554,1741329955480,-552.90818448,0.00019173,2]
[355584555,1741329955502,-500.0,0.00019173,2]
[355584556,1741329955526,-302.42972474,0.00019173,2]
[355584557,1741329955547,-504.09050816,0.00019173,2]
[355584558,1741329955569,-504.42670677,0.00019173,2]
[355584559,1741329955592,-150.30683713,0.00019173,2]
[355584560,1741329955613,-500.92541748,0.00019173,2]
[355584561,1741329955636,-160.17219065,0.00019173,2]
[355584562,1741329955659,-518.11200034,0.00019173,2]
[355584563,1741329955682,-502.39886192,0.00019173,2]
[355584564,1741329955706,-210.60191648,0.00019173,2]
[355584565,1741329955732,-500.0,0.00019173,2]
[355584566,1741329955754,-400.46518935,0.00019173,2]
[355584567,1741329961940,1667.59,0.00018,3]
[355584598,1741330232906,-1697.96967392,0.00017983,2]
[355584600,1741330232918,-181.4548821,0.00018123,2]
[355584602,1741330232928,-408.1828815,0.00018174,2]
[355584603,1741330232937,-1366.77560512,0.000189,2]
[355584605,1741330232947,-300.0,0.00019021,2]
[355584608,1741330232957,-500.0,0.00019022,2]
[355584609,1741330232967,-500.0,0.00019022,2]
[355584611,1741330232976,-500.0,0.00019022,2]
[355584614,1741330232986,-500.0,0.00019022,2]
[355584616,1741330232996,-500.0,0.00019022,2]
[355584617,1741330233005,-500.0,0.00019022,2]
[355584620,1741330233016,-500.0,0.00019022,2]
[355584621,1741330233025,-500.0,0.00019166,2]
[355584624,1741330233036,-540.0,0.00019166,2]
[355584626,1741330233047,-583.2,0.00019166,2]
[355584628,1741330233057,-629.856,0.00019166,2]
[355584630,1741330233067,-680.24448,0.00019166,2]
[355584632,1741330233077,-734.6640384,0.00019166,2]
[355584634,1741330233087,-793.43716147,0.00019166,2]
[355584636,1741330233097,-856.91213439,0.00019166,2]
[355584638,1741330233107,-1000.0,0.00019166,2]
[355584639,1741330233116,-363.22,0.00019168,3]
[355584642,1741330233126,-500.0,0.00019173,2]
[355584644,1741330233136,-500.0,0.00019173,2]
[355584646,1741330233145,-500.0,0.00019173,2]
[355584647,1741330233155,-500.0,0.00019173,2]
[355584649,1741330233165,-508.9112982,0.00019173,2]
[355584651,1741330233174,-500.0,0.00019173,2]
[355584654,1741330233184,-500.0,0.00019173,2]
[355584655,1741330233194,-500.0,0.00019173,2]
[355584657,1741330233204,-422.33736424,0.00019173,2]
[355584660,1741330233216,-201.22870177,0.00019173,2]
[355584662,1741330233225,-500.0,0.00019173,2]
[355584664,1741330233235,-500.87725597,0.00019173,2]
[355584665,1741330233245,-500.0,0.00019173,2]
[355584668,1741330233254,-500.0,0.00019173,2]
[355584670,1741330233264,-500.0,0.00019173,2]
[355584672,1741330233273,-500.0,0.00019173,2]
[355584674,1741330233283,-503.10341612,0.00019173,2]
[355584676,1741330233292,-189.65344568,0.00019173,2]
[355584678,1741330233302,-500.0,0.00019173,2]
[355584680,1741330233312,-400.0,0.00019173,2]
[355584682,1741330233322,-500.0,0.00019173,2]
[355584684,1741330233332,-500.0,0.00019173,2]
[355584685,1741330233341,-500.0,0.00019173,2]
[355584686,1741330233351,-500.0,0.00019173,2]
[355584688,1741330233361,-510.35580591,0.00019173,2]
[355584690,1741330233370,-502.28796984,0.00019173,2]
[355584693,1741330233384,-500.0,0.00019173,2]
[355584695,1741330233397,-160.54294987,0.00019173,2]
[355584697,1741330233410,-500.0,0.00019173,2]
[355584700,1741330233423,-500.0,0.00019177,2]
[355584701,1741330233437,-500.0,0.00019177,2]
[355584702,1741330233449,-500.0,0.00019177,2]
[355584704,1741330233461,-165.35451229,0.00019177,2]
[355584706,1741330233472,-500.0,0.00019177,2]
[355584708,1741330233485,-500.0,0.00019177,2]
[355584710,1741330233497,-500.0,0.00019177,2]
[355584713,1741330233509,-555.27731069,0.00019177,2]
[355584715,1741330233520,-500.0,0.00019177,2]
[355584717,1741330233533,-500.0,0.00019177,2]
[355584720,1741330233545,-395.12047404,0.00019177,2]
[355584722,1741330233559,-504.95435585,0.00019177,2]
[355584724,1741330233570,-176.58433182,0.00019177,2]
[355584727,1741330233582,-500.0,0.00019177,2]
[355584729,1741330233595,-500.0,0.00019177,2]
[355584731,1741330233607,-523.90562025,0.00019177,2]
[355584732,1741330233620,-500.0,0.00019178,2]
[355584733,1741330233632,-299.5116506,0.00019178,2]
[355584734,1741330233645,-520.83,0.00019178,2]
[355584735,1741330233657,-500.0,0.00019178,2]
[355584736,1741330233668,-500.0,0.00019178,2]
[355584737,1741330233681,-500.0,0.00019178,2]
[355584738,1741330233692,-220.95515919,0.00019178,2]
[355584739,1741330233703,-102.10725953,0.00019178,2]
[355584740,1741330233978,-619.09274047,0.00019178,2]
[355584741,1741330233990,-500.0,0.00019178,2]
[355584742,1741330234001,-500.0,0.00019178,2]
[355584743,1741330234012,-545.97,0.00019178,2]
[355584744,1741330234023,-500.0,0.00019178,2]
[355584745,1741330234034,-500.0,0.00019178,2]
[355584746,1741330234045,-500.0,0.00019178,2]
[355584747,1741330234057,-500.0,0.00019178,2]
[355584748,1741330234068,-915.28,0.00019178,2]
[355584749,1741330234079,-500.0,0.00019178,2]
[355584750,1741330234090,-818.82,0.00019178,2]
[355584751,1741330234100,-505.33404171,0.00019178,2]
[355584752,1741330234111,-326.22730064,0.00019178,2]
[355584753,1741330234122,-500.0,0.00019178,2]
[355584754,1741330234132,-695.84,0.00019178,2]
[355584755,1741330234155,-746.04,0.00019178,2]
[355584756,1741330234170,-830.43,0.00019178,2]
[355584757,1741330234184,-666.23,0.00019178,2]
[355584758,1741330234199,-500.0,0.00019178,2]
[355584759,1741330234215,-500.0,0.00019178,2]
[355584760,1741330234228,-500.0,0.00019178,2]
[355584761,1741330234242,-500.0,0.00019178,2]
[355584762,1741330234255,-500.0,0.00019178,2]
[355584763,1741330234270,-500.0,0.00019178,2]
[355584764,1741330234282,-500.0,0.00019178,2]
[355584765,1741330234295,-596.04,0.00019178,2]
[355584766,1741330234307,-500.0,0.00019178,2]
[355584767,1741330234319,-507.08,0.00019178,2]
[355584768,1741330234332,-500.0,0.00019178,2]
[355584769,1741330234344,-852.41,0.00019178,2]
[355584770,1741330234357,-500.0,0.00019178,2]
[355584771,1741330234369,-500.0,0.00019178,2]
[355584772,1741330234380,-721.16,0.00019178,2]
[355584773,1741330234393,-500.0,0.00019178,2]
[355584774,1741330234405,-501.44,0.00019178,2]
[355584775,1741330234417,-626.49,0.00019178,2]
[355584776,1741330234429,-780.3,0.00019178,2]
[355584777,1741330234440,-500.0,0.00019178,2]
[355584778,1741330234452,-500.0,0.00019178,2]
[355584779,1741330234463,-500.0,0.00019178,2]
[355584780,1741330234475,-1111.09,0.00019178,2]
[355584781,1741330234487,-1109.77,0.00019178,2]
[355584782,1741330234498,-515.3,0.00019178,2]
[355584783,1741330234511,-500.0,0.00019178,2]
[355584784,1741330234522,-792.23,0.00019178,2]
[355584785,1741330234533,-1838.61,0.00019178,2]
[355584786,1741330234544,-151.0,0.00019178,2]
[355584787,1741330234556,-151.0,0.00019178,2]
[355584788,1741330234567,-151.0,0.00019178,2]
[355584789,1741330234578,-151.0,0.00019178,2]
[355584790,1741330234589,-151.0,0.00019178,2]
[355584791,1741330234600,-151.0,0.00019178,2]
[355584792,1741330234612,-151.0,0.00019178,2]
[355584793,1741330234623,-151.0,0.00019178,2]
[355584794,1741330234634,-151.0,0.00019178,2]
[355584795,1741330234645,-160.974453,0.00019178,2]
[355584796,1741330234657,-1701.77,0.00019178,2]
[355584797,1741330234668,-551.26,0.00019178,2]
[355584798,1741330234679,-1826.54,0.00019178,2]
[355584799,1741330234690,-500.0,0.00019178,2]
[355584800,1741330234701,-500.0,0.00019178,2]
[355584801,1741330234711,-500.0,0.00019178,2]
[355584802,1741330234722,-1436.15,0.00019178,2]
[355584803,1741330234733,-500.0,0.00019178,2]
[355584804,1741330234744,-500.0,0.00019178,2]
[355584805,1741330234755,-751.67,0.00019178,2]
[355584806,1741330234766,-500.0,0.00019178,2]
[355584807,1741330234777,-724.85,0.00019178,2]
[355584808,1741330234788,-1369.85,0.00019178,2]
[355584809,1741330234799,-500.0,0.00019178,2]
[355584810,1741330234810,-500.0,0.00019178,2]
[355584811,1741330234821,-800.28,0.00019178,2]
[355584812,1741330234831,-286.24432458,0.00019178,2]
[355584813,1741330234842,-516.22447018,0.00019178,2]
[355584814,1741330234853,-986.37,0.00019178,2]
[355584815,1741330234863,-556.18,0.00019178,2]
[355584816,1741330234875,-635.75,0.00019178,2]
[355584817,1741330234885,-1893.94,0.00019178,2]
[355584818,1741330234896,-500.0,0.00019178,2]
[355584819,1741330234908,-525.30891885,0.00019178,2]
[355584820,1741330234919,-1275.59,0.00019178,2]
[355584821,1741330234930,-1451.37,0.00019178,2]
[355584822,1741330234941,-1107.34,0.00019178,2]
[355584823,1741330234952,-500.0,0.00019178,2]
[355584824,1741330234963,-500.0,0.00019178,2]
[355584825,1741330234974,-402.25676113,0.00019178,2]
[355584831,1741330238529,-210.90323887,0.00019178,2]
[355584832,1741330238539,-536.95,0.00019178,2]
[355584833,1741330238548,-626.75,0.00019178,2]
[355584834,1741330238558,-752.78,0.00019178,2]
[355584835,1741330238568,-500.0,0.00019178,2]
[355584836,1741330238577,-992.84,0.00019178,2]
[355584837,1741330238587,-644.68,0.00019178,2]
[355584838,1741330238597,-1802.83,0.00019178,2]
[355584839,1741330238607,-582.41,0.00019178,2]
[355584840,1741330238616,-500.0,0.00019178,2]
[355584841,1741330238626,-500.0,0.00019178,2]
[355584843,1741330238636,-500.0,0.00019178,2]
[355584844,1741330238646,-500.0,0.00019178,2]
[355584845,1741330238655,-500.0,0.00019178,2]
[355584846,1741330238665,-500.0,0.00019178,2]
[355584847,1741330238675,-1547.05,0.00019178,2]
[355584848,1741330238684,-1882.16,0.00019178,2]
[355584849,1741330238694,-2606.78,0.00019178,2]
[355584850,1741330238704,-500.0,0.00019178,2]
[355584851,1741330238713,-1934.78,0.00019178,2]
[355584852,1741330238722,-500.0,0.00019178,2]
[355584853,1741330238731,-1647.69,0.00019178,2]
[355584854,1741330238741,-500.0,0.00019178,2]
[355584855,1741330238750,-771.41,0.00019178,2]
[355584856,1741330238759,-151.0,0.00019178,2]
[355584857,1741330238768,-242.94365,0.00019178,2]
[355584858,1741330238777,-500.0,0.00019178,2]
[355584859,1741330238786,-634.79,0.00019178,2]
[355584860,1741330238795,-30608.27373471,0.00019178,2]
[355584895,1741330243677,-695.92365881,0.00019178,2]
[355584896,1741330243706,-12309.99999272,0.00019178,2]
[355584915,1741330246620,-18489.31220903,0.00019178,2]
[355584947,1741330246920,-3316.26946292,0.00019178,2]
[355585462,1741331437582,-167.053446,0.00017933,2]
[355585464,1741331437592,-2813.496242,0.00018083,2]
[355585466,1741331437601,-300.0,0.00018154,2]
[355585468,1741331437610,-1947.3394271,0.00018155,2]
[355585707,1741331836114,22037.53199445,0.00018,3]
[355585713,1741331920178,178278.29836173,0.00016,2]
[355585714,1741331946873,25000.0,0.00016,3]
[355585715,1741331946897,699854.95302505,0.00016,3]
[355585718,1741332471978,4457.32688728,0.00016,2]
[355585719,1741332513313,318.30302334,0.000145,2]
[355585731,1741332550148,-167.0534469,0.00017246,2]
[355585732,1741332550169,-300.0,0.00017886,2]
[355585733,1741332550191,-10760.82129663,0.00017887,2]
[355586532,1741332632102,-158.230628,0.0001692,3]
[355586533,1741332632112,-300.0,0.00017886,2]
[355586534,1741332632121,-14139.17870337,0.00017887,2]
[355586535,1741332632131,-283.91970119,0.00017999,2]
[355586536,1741332632140,-2165.96806034,0.00018,3]
[355586537,1741332632152,-8341.83170438,0.00018,3]
[355586538,1741332632162,-80176.38566163,0.00018,3]
[355586575,1741332638103,-16472.22709332,0.00018,3]
[355587560,1741332758404,-183.72723587,0.00017999,2]
[355587561,1741332758439,-500.0,0.00017999,2]
[355587562,1741332758472,-500.0,0.00017999,2]
[355587563,1741332758504,-486.69995821,0.00017999,2]
[355587564,1741332758538,-300.0,0.00017999,2]
[355587565,1741332758567,-23452.50278413,0.00018,3]
[355587566,1741332758594,-500.0,0.00018085,2]
[355587567,1741332758622,-911.18373675,0.000189,2]
[355587568,1741332758650,-1000.0,0.00019,19]
[355587569,1741332758678,-1148.0,0.00019,2]
[355587570,1741332758707,-557.25246958,0.00019022,2]
[355587571,1741332758738,-617.13462151,0.00019022,2]
[355587572,1741332758770,-500.0,0.00019022,2]
[355587573,1741332758800,-500.0,0.00019022,2]
[355587574,1741332758829,-2072.43662605,0.00019073,2]
[355587575,1741332758857,-501.35403126,0.00019173,2]
[355587576,1741332758884,-500.0,0.00019173,2]
[355587577,1741332758912,-500.0,0.00019173,2]
[355587578,1741332758940,-330.39095265,0.00019173,2]
[355587579,1741332758967,-429.58774949,0.00019173,2]
[355587580,1741332758994,-411.45332166,0.00019173,2]
[355587581,1741332759020,-500.0,0.00019173,2]
[355587582,1741332759047,-500.0,0.00019173,2]
[355587583,1741332759075,-426.63177568,0.00019173,2]
[355587584,1741332759103,-500.0,0.00019173,2]
[355587585,1741332759130,-418.9564924,0.00019173,2]
[355587586,1741332759156,-258.77972597,0.00019173,2]
[355587587,1741332759183,-500.0,0.00019173,2]
[355587588,1741332759211,-516.80562784,0.00019173,2]
[355587589,1741332759239,-500.0,0.00019173,2]
[355587590,1741332759267,-500.0,0.00019173,2]
[355587591,1741332759294,-546.80117188,0.00019173,2]
[355587592,1741332759321,-522.14335578,0.00019173,2]
[355587593,1741332759348,-500.0,0.00019173,2]
[355587594,1741332759376,-500.0,0.00019173,2]
[355587595,1741332759403,-356.47930468,0.00019173,2]
[355587596,1741332759431,-500.0,0.00019173,2]
[355587597,1741332759458,-500.0,0.00019173,2]
[355587598,1741332759489,-324.79321764,0.00019175,2]
[355587599,1741332759516,-500.0,0.00019175,2]
[355587600,1741332759544,-158.26348523,0.00019175,2]
[355587601,1741332759574,-500.0,0.00019175,2]
[355587602,1741332759601,-97458.3115846,0.00019176,2]
[355587603,1741332759628,-248.297628,0.00019176,2]
[355587604,1741332759655,-151.0,0.00019176,2]
[355587605,1741332759683,-151.0,0.00019176,2]
[355587606,1741332759711,-151.0,0.00019176,2]
[355587607,1741332759739,-151.0,0.00019176,2]
[355587608,1741332759771,-1361.62470514,0.00019177,2]
[355587609,1741332759800,-500.0,0.00019178,2]
[355587610,1741332759828,-500.0,0.00019178,2]
[355587611,1741332759857,-339.09315087,0.00019178,2]
[355587612,1741332759886,-500.0,0.00019178,2]
[355587613,1741332759913,-500.0,0.00019178,2]
[355587614,1741332759940,-507.52652986,0.00019178,2]
[355587615,1741332759971,-500.0,0.00019178,2]
[355587616,1741332760003,-500.0,0.00019178,2]
[355587617,1741332760031,-500.0,0.00019178,2]
[355587618,1741332760059,-354.74122856,0.00019178,2]
[355587619,1741332760086,-500.0,0.00019178,2]
[355587620,1741332760116,-695.96,0.00019178,2]
[355587621,1741332760145,-672.9,0.00019178,2]
[355587622,1741332760172,-814.04,0.00019178,2]
[355587623,1741332760200,-500.0,0.00019178,2]
[355587624,1741332760230,-709.57,0.00019178,2]
[355587625,1741332760258,-500.0,0.00019178,2]
[355587626,1741332760285,-691.15,0.00019178,2]
[355587627,1741332760312,-500.0,0.00019178,2]
[355587628,1741332760340,-500.0,0.00019178,2]
[355587629,1741332760370,-500.0,0.00019178,2]
[355587630,1741332760398,-691.11,0.00019178,2]
[355587631,1741332760426,-500.0,0.00019178,2]
[355587632,1741332760454,-600.38,0.00019178,2]
[355587633,1741332760483,-500.0,0.00019178,2]
[355587634,1741332760511,-500.0,0.00019178,2]
[355587635,1741332760539,-500.0,0.00019178,2]
[355587636,1741332760568,-759.22,0.00019178,2]
[355587637,1741332760597,-500.0,0.00019178,2]
[355587638,1741332760625,-528.29,0.00019178,2]
[355587639,1741332760653,-500.0,0.00019178,2]
[355587640,1741332760682,-500.0,0.00019178,2]
[355587641,1741332760711,-500.0,0.00019178,2]
[355587642,1741332760741,-500.0,0.00019178,2]
[355587643,1741332760773,-500.0,0.00019178,2]
[355587644,1741332760803,-1762.0,0.00019178,2]
[355587645,1741332760833,-523.22,0.00019178,2]
[355587646,1741332760868,-754.47,0.00019178,2]
[355587647,1741332760898,-500.0,0.00019178,2]
[355587648,1741332760928,-1630.86,0.00019178,2]
[355587649,1741332760956,-784.71,0.00019178,2]
[355587650,1741332760985,-500.0,0.00019178,2]
[355587651,1741332761014,-1750.43,0.00019178,2]
[355587652,1741332761043,-694.65,0.00019178,2]
[355587653,1741332761071,-1376.31,0.00019178,2]
[355587654,1741332761099,-500.0,0.00019178,2]
[355587655,1741332761130,-877.15,0.00019178,2]
[355587656,1741332761160,-500.0,0.00019178,2]
[355587657,1741332761189,-609.26,0.00019178,2]
[355587658,1741332761219,-500.0,0.00019178,2]
[355587659,1741332761248,-795.83,0.00019178,2]
[355587660,1741332761278,-1312.78,0.00019178,2]
[355587661,1741332761307,-666.84,0.00019178,2]
[355587662,1741332761336,-1061.2,0.00019178,2]
[355587663,1741332761366,-1522.39,0.00019178,2]
[355587664,1741332761395,-638.47,0.00019178,2]
[355587665,1741332761424,-945.27,0.00019178,2]
[355587666,1741332761452,-151.0,0.00019178,2]
[355587667,1741332761480,-151.0,0.00019178,2]
[355587668,1741332761509,-151.0,0.00019178,2]
[355587669,1741332761691,-151.0,0.00019178,2]
[355587670,1741332761720,-151.0,0.00019178,2]
[355587671,1741332761753,-1223.82,0.00019178,2]
[355587672,1741332761782,-197.21784,0.00019178,2]
[355587673,1741332761814,-500.0,0.00019178,2]
[355587674,1741332761846,-209.40531696,0.00019178,2]
[355587675,1741332761880,-503.28402431,0.00019178,2]
[355587676,1741332761910,-500.0,0.00019178,2]
[355587677,1741332761938,-1815.03,0.00019178,2]
[355587678,1741332761967,-1222.44,0.00019178,2]
[355587679,1741332761995,-500.0,0.00019178,2]
[355587680,1741332762023,-514.58,0.00019178,2]
[355587681,1741332762051,-500.0,0.00019178,2]
[355587682,1741332762080,-951.47,0.00019178,2]
[355587683,1741332762109,-500.0,0.00019178,2]
[355587684,1741332762137,-500.0,0.00019178,2]
[355587685,1741332762166,-210.52436481,0.00019178,2]
[355587686,1741332762194,-1727.71,0.00019178,2]
[355587687,1741332762222,-1063.53,0.00019178,2]
[355587688,1741332762251,-636.49262142,0.00019178,2]
[355587689,1741332762278,-558.14,0.00019178,2]
[355587690,1741332762307,-816.9,0.00019178,2]
[355587691,1741332762335,-500.0,0.00019178,2]
[355587692,1741332762366,-543.69,0.00019178,2]
[355587693,1741332762396,-2498.16,0.00019178,2]
[355587694,1741332762426,-500.0,0.00019178,2]
[355587695,1741332762455,-571.21,0.00019178,2]
[355587696,1741332762484,-500.0,0.00019178,2]
[355587697,1741332762512,-500.0,0.00019178,2]
[355587698,1741332762540,-500.0,0.00019178,2]
[355587699,1741332762568,-739.27,0.00019178,2]
[355587700,1741332762597,-500.0,0.00019178,2]
[355587701,1741332762629,-500.0,0.00019178,2]
[355587702,1741332762657,-628.38,0.00019178,2]
[355587703,1741332762689,-608.34,0.00019178,2]
[355587704,1741332762719,-500.0,0.00019178,2]
[355587705,1741332762747,-500.0,0.00019178,2]
[355587706,1741332762778,-500.0,0.00019178,2]
[355587707,1741332762808,-623.98,0.00019178,2]
[355587708,1741332762837,-500.0,0.00019178,2]
[355587709,1741332762867,-500.0,0.00019178,2]
[355587710,1741332762896,-500.0,0.00019178,2]
[355587711,1741332762925,-2273.71,0.00019178,2]
[355587712,1741332762953,-720.35,0.00019178,2]
[355587713,1741332762991,-500.0,0.00019178,2]
[355587714,1741332763025,-500.0,0.00019178,2]
[355587715,1741332763056,-500.0,0.00019178,2]
[355587716,1741332763086,-801.56,0.00019178,2]
[355587717,1741332763117,-500.0,0.00019178,2]
[355587718,1741332763151,-2876.61,0.00019178,2]
[355587719,1741332763181,-878.77,0.00019178,2]
[355587720,1741332763211,-1095.48,0.00019178,2]
[355587721,1741332763242,-976.94,0.00019178,2]
[355587722,1741332763272,-1037.04,0.00019178,2]
[355587723,1741332763302,-1262.27,0.00019178,2]
[355587724,1741332763332,-500.0,0.00019178,2]
[355587725,1741332763362,-1592.55,0.00019178,2]
[355587726,1741332763392,-500.0,0.00019178,2]
[355587727,1741332763422,-911.25,0.00019178,2]
[355587728,1741332763451,-601.13,0.00019178,2]